Cogmind - Beta 10.2 @@@ ROGUE MODE // 2021.05.07 @ 16:16:43 Player: Teratos Result: Self-destructed Performance ------------- Evolutions (1) 500 Regions Visited (3) 600 Robots Destroyed (26) 130 Value Destroyed (547) 547 Prototype IDs (0) 0 Alien Tech Used (0) 0 Bonus (0) 0 TOTAL SCORE: 1777 Bonus ------- None Cogmind --------- Core Integrity 355/400 Matter 231/300 Energy 100/100 System Corruption 0% Temperature Cool (0) Movement Rolling (100) Ox1 Location -9/Materials Parts ------- > --- POWER (1) -------- (None) > --- PROPULSION (2) --- Armored Wheel > --- UTILITY (4) ------ Field Recycling Unit > --- WEAPON (2) ------- Assault Rifle Rocket Launcher > --- INVENTORY (4) ---- Field Recycling Unit (0) Peak State ------------ > --- POWER ------------ (None) > --- PROPULSION ------- Armored Wheel Armored Wheel > --- UTILITY ---------- Field Recycling Unit Field Recycling Unit > --- WEAPON ----------- Shotgun Shotgun > --- INVENTORY -------- Assault Rifle [Rating: 12] Favorites ----------- Power Light Ion Engine Engine Light Ion Engine Propulsion Armored Wheel Treads Light Treads Wheel Armored Wheel Utility Field Recycling Unit Device Field Recycling Unit Weapon Shotgun Energy Gun Small Laser Ballistic Gun Shotgun Launcher Rocket Launcher Build | -11 -10 -10 -9 ------- Run | Scr Mat Min Mat Slots Evolved 2 | . . . 2 Power . | . . . . Propulsion . | . . . . Utility 2 | . . . 2 Weapon . | . . . . Parts Attached 13 | 4 6 3 . Power 1 | . . 1 . Engine 1 | . . 1 . Core . | . . . . Reactor . | . . . . Propulsion 4 | 2 2 . . Treads 2 | 2 . . . Leg . | . . . . Wheel 2 | . 2 . . Hover . | . . . . Flight . | . . . . Utility 2 | . 2 . . Device 2 | . 2 . . Storage . | . . . . Processor . | . . . . Hackware . | . . . . Protection . | . . . . Artifact . | . . . . Weapon 6 | 2 2 2 . Energy Gun 1 | 1 . . . Energy Cannon . | . . . . Ballistic Gun 4 | 1 2 1 . Ballistic Cannon . | . . . . Launcher 1 | . . 1 . Special Weapon . | . . . . Impact Weapon . | . . . . Slashing Weapon . | . . . . Piercing Weapon . | . . . . Special Melee Weapon . | . . . . Unidentified Prototypes . | . . . . Parts Lost 3 | . . 1 2 Power 1 | . . . 1 Propulsion 1 | . . . 1 Utility . | . . . . Weapon 1 | . . 1 . Highest Loss Streak 2 | . . 1 2 Average Slot Usage (%) 73 | . 73 76 59 Engine 3 | . . 6 7 Wheel 26 | . 26 28 19 Device 14 | . 16 14 11 Ballistic Gun 25 | . 27 25 11 Launcher 1 | . . 2 11 Naked Turns . | . . . . Heaviest Build 22 | 3 22 17 17 Greatest Support 40 | 40 40 24 24 Greatest Overweight (x) 1 | . . . 1 Average Overweight (x) . | . . . . Largest Inventory Capacity 4 | 4 4 4 4 Average Capacity 4 | 4 4 4 4 Most Carried 2 | . 2 2 1 Average Carried 1 | . 1 1 1 Final Capacity 4 | 4 4 4 4 Final Carried 2 | . 2 1 1 Class Distribution -------------------- 100% | Mutant Dominant Class ---------------- Mutant | -10/Materials Mutant | -10/Mines Mutant | -9/Materials Resources | -11 -10 -10 -9 ----------- Run | Scr Mat Min Mat Matter Collected 502 | 46 184 177 95 Remotely . | . . . . Salvage Created 571 | . 184 268 119 Parts 44 | . 14 17 13 Haulers Intercepted . | . . . . Recyclers Shooed . | . . . . Parts Field Recycled 22 | . 22 . . Retrieved Matter 225 | . 225 . . Parts Self-Destructed . | . . . . Prevented . | . . . . Kills | -11 -10 -10 -9 ------- Run | Scr Mat Min Mat Combat Hostiles Destroyed 19 | . 2 10 7 Guns 14 | . 2 10 2 AOE 5 | . . . 5 Classes Destroyed 9 | . 6 2 1 Worker 1 | . . 1 . Builder 1 | . 1 . . Tunneler 1 | . 1 . . Recycler 1 | . 1 . . Operator 1 | . 1 . . Watcher 2 | . 1 . 1 Swarmer 9 | . . 6 3 Grunt 9 | . 2 4 3 Sentry 1 | . . . 1 Best Kill Streak 5 | . 5 4 5 Combat Bots Only 4 | . 2 3 4 Max Kills in Single Turn 2 | . 1 2 2 Gunslinging 1 | . . 1 . Exploded 2 | . . . 2 Melee . | . . . . Uniques/NPCs Destroyed . | . . . . Combat | -11 -10 -10 -9 -------- Run | Scr Mat Min Mat Damage Taken 779 | . 166 361 252 Core 220 | . 63 112 45 Absorbed by Shields . | . . . . Core Remaining (%) 65 | 100 . 30 . Volleys Fired 59 | . 18 23 18 Largest 2 | . 2 2 2 Hottest 53 | . 46 46 53 Shots Fired 103 | . 36 39 28 Gun 93 | . 36 39 18 Cannon . | . . . . Launcher 10 | . . . 10 Special . | . . . . Kinetic 93 | . 36 39 18 Thermal . | . . . . Explosive 10 | . . . 10 Electromagnetic . | . . . . Robot Hit Streak 9 | . 9 7 5 Robot Miss Streak 5 | . 4 5 4 Penetration Max . | . . . . Secondary Targets 2 | . 1 1 . Max Gunslinging Chain 1 | . 1 1 . Shots Hit Robots 67 | . 23 31 13 Core Hits 41 | . 12 17 12 Critical Hits . | . . . . Critical Kills . | . . . . Critical Parts Destroyed . | . . . . Melee Attacks . | . . . . Impact . | . . . . Slashing . | . . . . Piercing . | . . . . Sneak Attacks . | . . . . Combat Hostiles . | . . . . Follow-up Attacks . | . . . . Damage Inflicted 1401 | . 331 327 743 Guns 781 | . 331 327 123 Cannons . | . . . . Explosions 620 | . . . 620 Melee . | . . . . Ramming . | . . . . Kinetic 781 | . 331 327 123 Thermal . | . . . . Explosive 620 | . . . 620 Electromagnetic . | . . . . Impact . | . . . . Slashing . | . . . . Piercing . | . . . . Highest Corruption . | . . . . Average Corruption . | . . . . Corruption Purged . | . . . . Overload Shots . | . . . . Overflow Damage 20 | . . . 20 Projectiles . | . . . . Explosions 20 | . . . 20 Melee . | . . . . Knockbacks . | . . . . Impact . | . . . . Kinetic . | . . . . Secondary . | . . . . Self-Inflicted Damage 39 | . . . 39 Shots 1 | . . . 1 Rammed . | . . . . Targets Rammed . | . . . . Kicked . | . . . . Crushed . | . . . . Highest Temperature 16 | . 16 . 6 Average Temperature 7 | . 8 . 3 Received Heat Transfer 246 | . 72 87 87 Siege Activations . | . . . . Robots Corrupted . | . . . . Combat Hostiles . | . . . . Parts Fried . | . . . . Impact Corruptions . | . . . . Robots Melted . | . . . . Combat Hostiles . | . . . . Parts Melted . | . . . . Heat Transferred . | . . . . Parts Sabotaged . | . . . . Parts Stolen . | . . . . Parts Stripped . | . . . . Power Chain Reactions . | . . . . Missiles Intercepted . | . . . . Alert | -11 -10 -10 -9 ------- Run | Scr Mat Min Mat Peak Influence 270 | . 92 270 239 Initial 35 | . . 35 27 Average 75 | . 37 117 130 Maximum Alert Level 1 | . . 1 1 Low Security (%) 90 | 100 100 82 74 Level 1 9 | . . 17 25 Level 2 . | . . . . Level 3 . | . . . . Level 4 . | . . . . Level 5 . | . . . . High Security . | . . . . Max Security . | . . . . Squads Dispatched 3 | . 2 . 1 Investigation 1 | . 1 . . Extermination . | . . . . Reinforcement 2 | . 1 . 1 Assault . | . . . . Garrison . | . . . . Intercept . | . . . . Construction Impeded . | . . . . Haulers Reinforced . | . . . . Stealth | -11 -10 -10 -9 --------- Run | Scr Mat Min Mat Distress Signals 1 | . . . 1 Communications Jammed . | . . . . Distress Signals . | . . . . Times Spotted 26 | . 4 10 12 Peak Tracking Total 4 | . 2 3 4 Tactical Retreats . | . . . . Traps | -11 -10 -10 -9 ------- Run | Scr Mat Min Mat Traps Triggered 2 | . 2 . . Indirectly . | . . . . Trap Hack Attempts . | . . . . Triggered . | . . . . Disarmed . | . . . . Reprogrammed . | . . . . Reused . | . . . . Traps Extracted . | . . . . Installed . | . . . . Triggered . | . . . . Machines | -11 -10 -10 -9 ---------- Run | Scr Mat Min Mat Machines Disabled . | . . . . Max in Single Turn . | . . . . Machines Sabotaged . | . . . . Garrisons Compromised . | . . . . Overloaded Fab Kills . | . . . . Fab Network Shutdowns . | . . . . Hacking | -11 -10 -10 -9 --------- Run | Scr Mat Min Mat Machines Accessed . | . . . . Terminals . | . . . . Fabricators . | . . . . Repair Stations . | . . . . Recycling Units . | . . . . Scanalyzers . | . . . . Garrison Access . | . . . . Total Hacks . | . . . . Successful . | . . . . Failed . | . . . . Catastrophic . | . . . . Database Lockouts . | . . . . Manual . | . . . . Terminals . | . . . . Fabricators . | . . . . Repair Stations . | . . . . Recycling Units . | . . . . Scanalyzers . | . . . . Garrison Access . | . . . . Terminal Hacks . | . . . . Fabricator Hacks . | . . . . Repair Station Hacks . | . . . . Recycling Unit Hacks . | . . . . Scanalyzer . | . . . . Garrison Access Hacks . | . . . . Unauthorized Hacks . | . . . . Terminals . | . . . . Fabricators . | . . . . Repair Stations . | . . . . Recycling Units . | . . . . Scanalyzers . | . . . . Garrison Access . | . . . . Data Cores Recovered . | . . . . Used . | . . . . Hacking Detections . | . . . . Full Trace Events . | . . . . Feedback Events . | . . . . Feedback Blocked . | . . . . Robot Schematics Acquired . | . . . . Robots Built . | . . . . Matter . | . . . . Time . | . . . . Total Robot Build Rating . | . . . . Part Schematics Acquired . | . . . . Parts Built . | . . . . Matter . | . . . . Time . | . . . . Total Part Build Rating . | . . . . Parts Repaired . | . . . . Time . | . . . . Parts Recycled . | . . . . Recycled Matter . | . . . . Retrieved Matter . | . . . . Retrieved Components . | . . . . Parts Scanalyzed . | . . . . Part Schematics Acquired . | . . . . Parts Damaged . | . . . . Bothacking | -11 -10 -10 -9 ------------ Run | Scr Mat Min Mat Used RIF Installer . | . . . . Robots Hacked . | . . . . Non-combat . | . . . . Combat . | . . . . Robot Hacks Applied . | . . . . Relay Couplers Released . | . . . . Robots Rewired . | . . . . Allies Hacked . | . . . . Hacks Repelled . | . . . . Allies | -11 -10 -10 -9 -------- Run | Scr Mat Min Mat Total Allies . | . . . . Largest Group . | . . . . Highest-Rated Group . | . . . . Highest-Rated Ally . | . . . . Total Orders . | . . . . Ally Attacks . | . . . . Total Damage . | . . . . Kills . | . . . . Allies Corrupted . | . . . . Allies Melted . | . . . . Intel | -11 -10 -10 -9 ------- Run | Scr Mat Min Mat Robot Analysis Total . | . . . . Derelict Logs Recovered 2 | . . 2 . Drone Launches . | . . . . Drone Recoveries . | . . . . Exploration | -11 -10 -10 -9 ------------- Run | Scr Mat Min Mat Turns Passed 1611 | 43 793 661 114 Spaces Moved 1120 | 27 389 631 73 Core 5 | 5 . . . Treads 45 | 22 23 . . Legs . | . . . . Wheels 1070 | . 366 631 73 Hover . | . . . . Flight . | . . . . Fastest Speed 50 | 50 90 90 90 Average Speed 92 | 139 94 90 93 Slowest Speed 160 | 160 160 90 100 Overloaded Moves . | . . . . Propulsion Burnouts . | . . . . Robots Hopped . | . . . . Cave-ins Triggered . | . . . . Exploration Rate (%) 40 | 4 47 100 11 Regions Visited 3 Branch Regions 1 Pre-discovered Areas . | . . . . Known Exits Taken . | . . . . Unknown Exits Taken 3 | 1 1 1 . Scrap Searched 1 | . . 1 . Spaces Dug . | . . . . Terrain Destroyed 76 | . . . 76 Melee . | . . . . Projectile . | . . . . AOE 76 | . . . 76 Terrain Rammed . | . . . . Walls Destroyed . | . . . . Machines Disabled . | . . . . Actions | -11 -10 -10 -9 --------- Run | Scr Mat Min Mat Total 1583 | 30 778 684 91 Wait 389 | . 362 27 . Move 1117 | 26 388 630 73 Hop . | . . . . Pick Up . | . . . . Fast Attach 11 | 4 5 2 . Attach 1 | . . 1 . Detach 1 | . 1 . . Swap 1 | . 1 . . Drop 4 | . 3 1 . Fire 59 | . 18 23 18 Melee . | . . . . Ram . | . . . . Kick . | . . . . Crush . | . . . . Escape Stasis . | . . . . Rewire . | . . . . Trap . | . . . . Miscellaneous . | . . . . Route ------- -11/Scrapyard -10/Materials (discovered 2 exits: [*Mat] / [*Min]) -10/Mines (discovered 2 exits: [*Mat x2]) -9/Materials (discovered 1 exit: Sto) History --------- Turn | Location | Event 20 | -11/Scrapyard | Discovered new exit (range 15) 44 | -11/Scrapyard | Entered Materials 307 | -10/Materials | Build established: Mutant 613 | -10/Materials | Discovered new exit (range 16) 795 | -10/Materials | Discovered new exit (range 14) 837 | -10/Materials | Entered Mines 920 | -10/Mines | Found a hidden stash of uninstalled traps 1029 | -10/Mines | A weapon hastily lodged in a ceiling crevice suddenly fell to the ground 1128 | -10/Mines | Learned Materials terminal intel 1158 | -10/Mines | Core integrity fell below 50% 1180 | -10/Mines | Discovered new exit (range 3) 1233 | -10/Mines | Discovered new exit (range 11) 1273 | -10/Mines | Learned 2 Materials zone layouts 1328 | -10/Mines | Received a Rocket Launcher from a helpful Derelict 1498 | -10/Mines | Entered Materials 1498 | -9/Materials | Evolved 2 slots: Utility x2 1499 | -9/Materials | Identified exit to Storage 1500 | -9/Materials | Loaded intel: 12 terminal locations 1612 | -9/Materials | Self-destructed Last Messages --------------- 01537_ The unstable cave ceiling collapses. 01558_ G-34 Mercenary destroyed. 01562_ Acquired 47 matter. 01574_ W-16 Scout destroyed. 01577_ G-34 Mercenary destroyed. 01579_ Lgt. Ion Engine destroyed. 01580_ Destroyed Particle Gun. 01580_ Arm. Wheel destroyed. 01580_ Destroyed Arm. Wheel. 01583_ G-47 Trooper destroyed. 01583_ Y-45 Defender destroyed. 01589_ Acquired 24 matter. 01590_ The unstable cave ceiling collapses. 01591_ U-05 Engineer lays Concrete. 01594_ U-05 Engineer builds a Wall. 01601_ T-07 Excavator is excavating. 01601_ Acquired 11 matter. 01602_ U-05 Engineer builds a Wall. 01609_ Destroyed Sensor Array. 01611_ U-05 Engineer lays Concrete. Map ----- +----------------------------------------------------+ | ?????????????????????????????????????????????????# | | ?????????????????????????????????????????????????# | | ?????????????????????????????????????????????????# | | ?????????????????????????????????????????????????# | | ?????????????????????????????????????????????????# | | ?????????????????????????????????????????????????# | | ?????????????????????????????????????????????????# | | ?????????????????????????????????????????????????# | | ?""??????????????????????????????????????????????# | | ?"T?????????????????????????????????????????????? | | ?""? ????????????????????????????????????????? | | ?? ???????????????????????????????????????? | | ? # ??????????????????????????????????????? | | ? ???????????????????????????????????????? | | ?? ???????????????????????????????????????? | | ?? ???????????????????????????????????????? | | ??? ????????????????????????????????????????? | | ??? ?#########??????????????????????????????? | | ??## ?# #??????????????????????????????? | | ??? ??# !!!#??????????????????????????????? | | ???? ??# !![#??????????????????????????????? | | ????# #??# !![#??????????????????????????????? | | ????# #??# ####???????????????????????????? | | ??# ##### # ##??????????????????????????? | | # * #########???????????????????? | | + [ = m * @ #???????????????????? | | #+#### ###! #???????????????????? | | ""??# ## ###?????????????????? | | "T??# # """ ## ######+##########??? | | ""??# # """ # | | ????# # """ # = ^ | | ????# """ # # | | ????# """ #""" # ############## ? | | ????# """ #"R ]# #??????????????? | | ????# """ #""" # # ##??????????????? | | ????#! # [ ### ##u #???????????????? | | ????#######+######+####?##### #??????????????? | | ???????# ? #??????????????? | | ???????# +??????????????? | | ???????# # ?????????????? | | ???????######+############### # ????????????? | | ????????????????????????????## ##? ???????????? | | ?????????????????????????????# #???##??????????? | | ?????????????????????????????# #???????????????? | | ?????????????????????????????# #???????????????? | | ?????????????????????????????# #???????????????? | | ?????????????????????????????? ???????????????? | | ?????????????????????????????? ????????????????? | | ?????????????????????????????????????????????????? | | ?????????????????????????????????????????????????? | +----------------------------------------------------+ Best States ------------- Heat Dissipation 28 Energy Generation 10 Energy Capacity 125 Matter Stores 300 Matter Capacity 300 Sight Range 16 Terrain Scan Density 10 Evasion (%) 42 Recoil Reduction 2 Item Schematics ----------------- None Robot Schematics ------------------ None Fabricated ------------ Nothing Alien Tech Used ----------------- None Achievements -------------- None Challenges ------------ None Game ------ Seed BeamFortressMatter Manual? 0 Play Time 00:09:33 Cumulative 54.9 hours Start 2021.05.07 @ 12:41:05 End 2021.05.07 @ 16:16:43 Sessions 3 Manual Loads 0 Difficulty Rogue Special Mode None Game No. 123 Rogue 123 Adventurer 0 Explorer 0 Win Type - Total 0 Types 0/0/0/0/0/0/0/0/0 Lore% 24 Gallery% 31 Achievement% 26 Wizard Run 0 Options --------- ASCII 0 Keyboard 0 Movement Numpad Keybinds 0 Fullscreen 1 Font 12/Smallcaps Map View 83x54 Tactical HUD 1 Map Filters NONE Filters NONE Steam 1 RUN: 4de946fc-0ed0-4365-810f-48ba974f72f6